[Event "Titled Tuesday Blitz January 31 Early 2023"]
[White "Llanos, Guillermo"]
[Black "Cueto, Jonny"]
[WhiteFideId "100358"]
[BlackFideId "3300145"]
[WhiteElo "2290"]
[BlackElo "2122"]
[Result "1-0"]
[Round "11"]
[TimeControl "180+2"]
[Date "2023.01.31"]
[WhiteClock "0:00:53"]
[BlackClock "0:00:01"]

1. e4 {[%clk 0:02:47]}  d6 {[%clk 0:02:53]} 2. d4 {[%clk 0:02:46]}  Nf6 {[%clk 0:02:51]} 3. Nc3 {[%clk 0:02:45]}  e5 {[%clk 0:02:49]} 4. Nf3 {[%clk 0:02:45]}  Nbd7 {[%clk 0:02:46]} 5. Be2 {[%clk 0:02:44]}  g6 {[%clk 0:02:40]} 6. O-O {[%clk 0:02:43]}  Bg7 {[%clk 0:02:40]} 7. h3 {[%clk 0:02:42]}  O-O {[%clk 0:02:38]} 8. Be3 {[%clk 0:02:42]}  c6 {[%clk 0:02:35]} 9. a4 {[%clk 0:02:41]}  Re8 {[%clk 0:02:22]} 10. dxe5 {[%clk 0:02:40]}  dxe5 {[%clk 0:02:19]} 11. Nd2 {[%clk 0:02:36]}  Qc7 {[%clk 0:01:54]} 12. Nc4 {[%clk 0:02:33]}  Bf8 {[%clk 0:01:48]} 13. a5 {[%clk 0:02:24]}  Bc5 {[%clk 0:01:47]} 14. Qd2 {[%clk 0:02:18]}  Bxe3 {[%clk 0:01:22]} 15. fxe3 {[%clk 0:02:15]}  Rf8 {[%clk 0:01:01]} 16. Nd6 {[%clk 0:02:03]}  Nc5 {[%clk 0:00:57]} 17. Rxf6 {[%clk 0:01:58]}  Be6 {[%clk 0:00:55]} 18. Nc4 {[%clk 0:01:54]}  Rad8 {[%clk 0:00:55]} 19. Qe1 {[%clk 0:01:53]}  Qe7 {[%clk 0:00:54]} 20. Rf3 {[%clk 0:01:47]}  Kg7 {[%clk 0:00:54]} 21. Nd2 {[%clk 0:01:43]}  Rd7 {[%clk 0:00:47]} 22. Bc4 {[%clk 0:01:43]}  Rfd8 {[%clk 0:00:45]} 23. Bxe6 {[%clk 0:01:43]}  Qxe6 {[%clk 0:00:46]} 24. Nf1 {[%clk 0:01:39]}  Qc4 {[%clk 0:00:44]} 25. Rd1 {[%clk 0:01:25]}  Rxd1 {[%clk 0:00:42]} 26. Nxd1 {[%clk 0:01:25]}  Qxc2 {[%clk 0:00:41]} 27. Nf2 {[%clk 0:01:15]}  Qxb2 {[%clk 0:00:34]} 28. Ng4 {[%clk 0:01:14]}  h5 {[%clk 0:00:22]} 29. Nf6 {[%clk 0:01:12]}  Rd6 {[%clk 0:00:20]} 30. Qh4 {[%clk 0:01:10]}  Re6 {[%clk 0:00:15]} 31. Qg5 {[%clk 0:01:09]}  Kf8 {[%clk 0:00:07]} 32. Qh6+ {[%clk 0:01:08]}  Ke7 {[%clk 0:00:07]} 33. Qh8 {[%clk 0:01:07]}  Kd6 {[%clk 0:00:06]} 34. Qf8+ {[%clk 0:01:05]}  Kc7 {[%clk 0:00:06]} 35. Qxc5 {[%clk 0:01:04]}  Qe2 {[%clk 0:00:03]} 36. Qxa7 {[%clk 0:00:58]}  Qc2 {[%clk 0:00:01]} 37. Qb6+ {[%clk 0:00:57]}  Kb8 {[%clk 0:00:01]} 38. Nd7+ {[%clk 0:00:56]}  Ka8 {[%clk 0:00:02]} 39. Nc5 {[%clk 0:00:55]}  Re7 {[%clk 0:00:02]} 40. a6 {[%clk 0:00:54]}  Qb1 {[%clk 0:00:01]} 41. Qxb1 {[%clk 0:00:53]} 1-0


[Site "https://www.chess.com"]

[Event "Titled Tuesday Blitz January 31 Early 2023"]
[White "Alahakoon, Isuru"]
[Black "Gatterer, Florian"]
[WhiteFideId "9900993"]
[BlackFideId "811688"]
[WhiteElo "1819"]
[BlackElo "2170"]
[Result "0-1"]
[Round "11"]
[TimeControl "180+2"]
[Date "2023.01.31"]
[WhiteClock "0:00:11"]
[BlackClock "0:00:27"]

1. Nf3 {[%clk 0:03:00]}  Nf6 {[%clk 0:02:59]} 2. d4 {[%clk 0:02:59]}  d5 {[%clk 0:02:59]} 3. c4 {[%clk 0:02:57]}  e6 {[%clk 0:02:59]} 4. Nc3 {[%clk 0:02:56]}  c5 {[%clk 0:02:59]} 5. e3 {[%clk 0:02:50]}  Nc6 {[%clk 0:02:57]} 6. cxd5 {[%clk 0:02:48]}  Nxd5 {[%clk 0:02:47]} 7. Bd3 {[%clk 0:02:46]}  cxd4 {[%clk 0:02:43]} 8. exd4 {[%clk 0:02:45]}  Be7 {[%clk 0:02:43]} 9. O-O {[%clk 0:02:40]}  Nf6 {[%clk 0:02:41]} 10. Re1 {[%clk 0:02:38]}  O-O {[%clk 0:02:38]} 11. Bg5 {[%clk 0:02:35]}  b6 {[%clk 0:02:36]} 12. Bc2 {[%clk 0:01:33]}  Bb7 {[%clk 0:02:31]} 13. a3 {[%clk 0:01:32]}  Rc8 {[%clk 0:02:22]} 14. Qd3 {[%clk 0:01:32]}  g6 {[%clk 0:02:22]} 15. Rad1 {[%clk 0:01:26]}  Nd5 {[%clk 0:02:20]} 16. Bh6 {[%clk 0:01:23]}  Re8 {[%clk 0:02:19]} 17. Ne4 {[%clk 0:01:22]}  Bf8 {[%clk 0:01:52]} 18. Bg5 {[%clk 0:01:20]}  Be7 {[%clk 0:01:51]} 19. Ba4 {[%clk 0:01:15]}  Bxg5 {[%clk 0:01:38]} 20. Nexg5 {[%clk 0:01:12]}  a6 {[%clk 0:01:36]} 21. Bxc6 {[%clk 0:01:10]}  Bxc6 {[%clk 0:01:36]} 22. Qe4 {[%clk 0:00:54]}  Nf6 {[%clk 0:01:22]} 23. Qh4 {[%clk 0:00:52]}  Nh5 {[%clk 0:01:22]} 24. Ne5 {[%clk 0:00:46]}  f6 {[%clk 0:00:53]} 25. Nxc6 {[%clk 0:00:43]}  Rxc6 {[%clk 0:00:48]} 26. Nf3 {[%clk 0:00:25]}  Rd6 {[%clk 0:00:48]} 27. g4 {[%clk 0:00:17]}  Ng7 {[%clk 0:00:48]} 28. Qg3 {[%clk 0:00:16]}  e5 {[%clk 0:00:48]} 29. h3 {[%clk 0:00:12]}  exd4 {[%clk 0:00:48]} 30. Qf4 {[%clk 0:00:12]}  Rxe1+ {[%clk 0:00:43]} 31. Rxe1 {[%clk 0:00:13]}  d3 {[%clk 0:00:41]} 32. Rd1 {[%clk 0:00:13]}  Ne6 {[%clk 0:00:39]} 33. Qc4 {[%clk 0:00:12]}  Kg7 {[%clk 0:00:35]} 34. Rd2 {[%clk 0:00:12]}  b5 {[%clk 0:00:34]} 35. Qb3 {[%clk 0:00:12]}  Nf4 {[%clk 0:00:31]} 36. Kh2 {[%clk 0:00:11]}  Qc7 {[%clk 0:00:28]} 37. Qc3 {[%clk 0:00:11]}  Rc6 {[%clk 0:00:27]} 0-1


[Site "https://www.chess.com"]

[Event "Titled Tuesday Blitz January 31 Early 2023"]
[White "matenitian"]
[Black "Ciuffoletti, Paolo"]
[BlackFideId "807630"]
[WhiteElo "2434"]
[BlackElo "2106"]
[Result "1-0"]
[Round "11"]
[TimeControl "180+2"]
[Date "2023.01.31"]
[WhiteClock "0:00:37"]
[BlackClock "0:00:03"]

1. e4 {[%clk 0:03:00]}  c5 {[%clk 0:02:58]} 2. Nc3 {[%clk 0:02:59]}  Nc6 {[%clk 0:02:57]} 3. g3 {[%clk 0:02:59]}  g6 {[%clk 0:02:57]} 4. Bg2 {[%clk 0:02:59]}  Bg7 {[%clk 0:02:58]} 5. d3 {[%clk 0:02:59]}  d6 {[%clk 0:02:58]} 6. Be3 {[%clk 0:02:59]}  e6 {[%clk 0:02:56]} 7. Qd2 {[%clk 0:02:58]}  Nd4 {[%clk 0:02:52]} 8. Nge2 {[%clk 0:02:55]}  Ne7 {[%clk 0:02:51]} 9. O-O {[%clk 0:02:52]}  Rb8 {[%clk 0:02:46]} 10. Bh6 {[%clk 0:02:51]}  O-O {[%clk 0:02:28]} 11. Bxg7 {[%clk 0:02:49]}  Kxg7 {[%clk 0:02:27]} 12. Nd1 {[%clk 0:02:44]}  b5 {[%clk 0:02:25]} 13. Nf4 {[%clk 0:02:41]}  e5 {[%clk 0:02:15]} 14. Ne2 {[%clk 0:02:35]}  Bh3 {[%clk 0:02:02]} 15. Nxd4 {[%clk 0:02:32]}  Bxg2 {[%clk 0:02:01]} 16. Nf5+ {[%clk 0:02:22]}  Nxf5 {[%clk 0:01:51]} 17. Kxg2 {[%clk 0:02:21]}  Nd4 {[%clk 0:01:46]} 18. c3 {[%clk 0:02:20]}  Ne6 {[%clk 0:01:46]} 19. Ne3 {[%clk 0:02:20]}  f5 {[%clk 0:01:45]} 20. Nd5 {[%clk 0:02:07]}  f4 {[%clk 0:01:42]} 21. f3 {[%clk 0:02:03]}  g5 {[%clk 0:01:28]} 22. g4 {[%clk 0:02:00]}  h5 {[%clk 0:01:16]} 23. h3 {[%clk 0:02:00]}  hxg4 {[%clk 0:01:10]} 24. hxg4 {[%clk 0:01:59]}  Nc7 {[%clk 0:01:10]} 25. Nxc7 {[%clk 0:01:56]}  Qxc7 {[%clk 0:01:09]} 26. d4 {[%clk 0:01:56]}  Rh8 {[%clk 0:01:01]} 27. Rad1 {[%clk 0:01:55]}  Rbd8 {[%clk 0:00:57]} 28. Qe2 {[%clk 0:01:47]}  c4 {[%clk 0:00:55]} 29. dxe5 {[%clk 0:01:45]}  dxe5 {[%clk 0:00:54]} 30. Rd5 {[%clk 0:01:46]}  Rxd5 {[%clk 0:00:45]} 31. exd5 {[%clk 0:01:46]}  Kf6 {[%clk 0:00:44]} 32. Re1 {[%clk 0:01:35]}  Qd6 {[%clk 0:00:35]} 33. Qe4 {[%clk 0:01:34]}  Ke7 {[%clk 0:00:15]} 34. Qf5 {[%clk 0:01:22]}  Qh6 {[%clk 0:00:10]} 35. Qxe5+ {[%clk 0:01:04]}  Kd8 {[%clk 0:00:09]} 36. Qb8+ {[%clk 0:00:56]}  Kd7 {[%clk 0:00:09]} 37. Qxb5+ {[%clk 0:00:55]}  Kd8 {[%clk 0:00:08]} 38. Qb8+ {[%clk 0:00:46]}  Kd7 {[%clk 0:00:09]} 39. Qb7+ {[%clk 0:00:45]}  Kd8 {[%clk 0:00:09]} 40. Qe7+ {[%clk 0:00:46]}  Kc8 {[%clk 0:00:09]} 41. Qe6+ {[%clk 0:00:46]}  Qxe6 {[%clk 0:00:08]} 42. dxe6 {[%clk 0:00:41]}  Re8 {[%clk 0:00:04]} 43. e7 {[%clk 0:00:41]}  Kd7 {[%clk 0:00:04]} 44. Re4 {[%clk 0:00:40]}  Rxe7 {[%clk 0:00:02]} 45. Rxe7+ {[%clk 0:00:40]}  Kxe7 {[%clk 0:00:02]} 46. Kf2 {[%clk 0:00:37]}  Kd6 {[%clk 0:00:02]} 47. Ke2 {[%clk 0:00:38]}  Kc5 {[%clk 0:00:02]} 48. Kd2 {[%clk 0:00:38]}  a5 {[%clk 0:00:03]} 49. b3 {[%clk 0:00:37]} 1-0


[Site "https://www.chess.com"]

[Event "Titled Tuesday Blitz January 31 Early 2023"]
[White "Sowul, Bartosz"]
[Black "Orujov, Elshad"]
[WhiteFideId "1137590"]
[BlackFideId "13403540"]
[WhiteElo "2269"]
[BlackElo "2304"]
[Result "1/2-1/2"]
[Round "11"]
[TimeControl "180+2"]
[Date "2023.01.31"]
[WhiteClock "0:00:18"]
[BlackClock "0:00:10"]

1. e4 {[%clk 0:02:59]}  c5 {[%clk 0:02:59]} 2. Nf3 {[%clk 0:02:58]}  d6 {[%clk 0:03:00]} 3. d4 {[%clk 0:02:57]}  cxd4 {[%clk 0:03:01]} 4. Nxd4 {[%clk 0:02:58]}  Nf6 {[%clk 0:03:01]} 5. Nc3 {[%clk 0:02:58]}  a6 {[%clk 0:03:01]} 6. Rg1 {[%clk 0:02:58]}  h5 {[%clk 0:02:59]} 7. a4 {[%clk 0:02:36]}  e5 {[%clk 0:02:58]} 8. Nb3 {[%clk 0:02:33]}  Be7 {[%clk 0:02:58]} 9. h3 {[%clk 0:02:32]}  Be6 {[%clk 0:02:57]} 10. g4 {[%clk 0:02:31]}  hxg4 {[%clk 0:02:58]} 11. hxg4 {[%clk 0:02:32]}  Nc6 {[%clk 0:02:56]} 12. g5 {[%clk 0:02:31]}  Nd7 {[%clk 0:02:56]} 13. Be3 {[%clk 0:02:24]}  Nc5 {[%clk 0:02:46]} 14. Nxc5 {[%clk 0:02:10]}  dxc5 {[%clk 0:02:46]} 15. Nd5 {[%clk 0:01:59]}  Bxd5 {[%clk 0:02:34]} 16. exd5 {[%clk 0:02:00]}  Nd4 {[%clk 0:02:34]} 17. c3 {[%clk 0:01:58]}  Nf5 {[%clk 0:02:33]} 18. g6 {[%clk 0:01:56]}  Nxe3 {[%clk 0:02:15]} 19. gxf7+ {[%clk 0:01:49]}  Kxf7 {[%clk 0:02:16]} 20. Qf3+ {[%clk 0:01:48]}  Bf6 {[%clk 0:02:09]} 21. fxe3 {[%clk 0:01:46]}  Qd6 {[%clk 0:01:56]} 22. Bh3 {[%clk 0:01:41]}  Raf8 {[%clk 0:01:43]} 23. Be6+ {[%clk 0:01:39]}  Ke7 {[%clk 0:01:42]} 24. O-O-O {[%clk 0:01:34]}  Kd8 {[%clk 0:01:41]} 25. Rh1 {[%clk 0:01:28]}  Kc7 {[%clk 0:01:38]} 26. Rxh8 {[%clk 0:01:23]}  Rxh8 {[%clk 0:01:39]} 27. Rh1 {[%clk 0:01:23]}  Rxh1+ {[%clk 0:01:09]} 28. Qxh1 {[%clk 0:01:24]}  Bg5 {[%clk 0:00:52]} 29. Qf3 {[%clk 0:01:19]}  Kb8 {[%clk 0:00:46]} 30. Kc2 {[%clk 0:01:18]}  Ka7 {[%clk 0:00:44]} 31. Qg3 {[%clk 0:01:10]}  Bh6 {[%clk 0:00:35]} 32. e4 {[%clk 0:01:04]}  c4 {[%clk 0:00:29]} 33. Qf2+ {[%clk 0:00:58]}  Kb8 {[%clk 0:00:27]} 34. a5 {[%clk 0:00:48]}  Bf4 {[%clk 0:00:22]} 35. b4 {[%clk 0:00:39]}  cxb3+ {[%clk 0:00:21]} 36. Kxb3 {[%clk 0:00:40]}  g5 {[%clk 0:00:19]} 37. c4 {[%clk 0:00:40]}  Qd8 {[%clk 0:00:17]} 38. Qe1 {[%clk 0:00:36]}  Qh8 {[%clk 0:00:12]} 39. c5 {[%clk 0:00:34]}  Qh5 {[%clk 0:00:07]} 40. c6 {[%clk 0:00:30]}  Qf3+ {[%clk 0:00:06]} 41. Ka4 {[%clk 0:00:28]}  Qd3 {[%clk 0:00:05]} 42. Qb4 {[%clk 0:00:21]}  Qc2+ {[%clk 0:00:04]} 43. Qb3 {[%clk 0:00:20]}  Qxb3+ {[%clk 0:00:05]} 44. Kxb3 {[%clk 0:00:20]}  bxc6 {[%clk 0:00:05]} 45. d6 {[%clk 0:00:19]}  Bd2 {[%clk 0:00:03]} 46. Kc4 {[%clk 0:00:16]}  Bxa5 {[%clk 0:00:03]} 47. Kc5 {[%clk 0:00:17]}  Bd8 {[%clk 0:00:02]} 48. Kxc6 {[%clk 0:00:17]}  a5 {[%clk 0:00:02]} 49. Kd7 {[%clk 0:00:16]}  Bf6 {[%clk 0:00:02]} 50. Kc6 {[%clk 0:00:13]}  a4 {[%clk 0:00:03]} 51. Kb5 {[%clk 0:00:14]}  a3 {[%clk 0:00:03]} 52. Ka4 {[%clk 0:00:14]}  g4 {[%clk 0:00:03]} 53. Kxa3 {[%clk 0:00:13]}  g3 {[%clk 0:00:04]} 54. Bh3 {[%clk 0:00:13]}  Kb7 {[%clk 0:00:04]} 55. Kb4 {[%clk 0:00:13]}  Kc6 {[%clk 0:00:04]} 56. d7 {[%clk 0:00:14]}  g2 {[%clk 0:00:04]} 57. Bxg2 {[%clk 0:00:14]}  Kxd7 {[%clk 0:00:04]} 58. Kc4 {[%clk 0:00:14]}  Kd6 {[%clk 0:00:05]} 59. Bh3 {[%clk 0:00:14]}  Bg5 {[%clk 0:00:06]} 60. Bf5 {[%clk 0:00:15]}  Bf4 {[%clk 0:00:06]} 61. Bg4 {[%clk 0:00:16]}  Bh2 {[%clk 0:00:07]} 62. Bf5 {[%clk 0:00:16]}  Bf4 {[%clk 0:00:08]} 63. Bg4 {[%clk 0:00:17]}  Bh2 {[%clk 0:00:09]} 64. Bf5 {[%clk 0:00:18]}  Bf4 {[%clk 0:00:10]} 1/2-1/2


[Site "https://www.chess.com"]

[Event "Titled Tuesday Blitz January 31 Early 2023"]
[White "Szente Varga, Fruzsina"]
[Black "Sai Han Thiha"]
[WhiteFideId "712264"]
[BlackFideId "13012290"]
[WhiteElo "2075"]
[BlackElo "2070"]
[Result "0-1"]
[Round "11"]
[TimeControl "180+2"]
[Date "2023.01.31"]
[WhiteClock "0:01:38"]
[BlackClock "0:00:57"]

1. e4 {[%clk 0:03:00]}  c6 {[%clk 0:03:00]} 2. d4 {[%clk 0:03:00]}  d5 {[%clk 0:03:00]} 3. Nc3 {[%clk 0:03:01]}  dxe4 {[%clk 0:03:01]} 4. Nxe4 {[%clk 0:03:02]}  Nf6 {[%clk 0:03:02]} 5. Nxf6+ {[%clk 0:03:02]}  exf6 {[%clk 0:03:03]} 6. c3 {[%clk 0:03:02]}  Bd6 {[%clk 0:03:04]} 7. Bd3 {[%clk 0:03:03]}  O-O {[%clk 0:03:04]} 8. Ne2 {[%clk 0:03:03]}  Re8 {[%clk 0:03:05]} 9. Qc2 {[%clk 0:03:02]}  h5 {[%clk 0:03:05]} 10. Bd2 {[%clk 0:02:57]}  Nd7 {[%clk 0:02:57]} 11. O-O-O {[%clk 0:02:56]}  Nf8 {[%clk 0:02:55]} 12. Bf4 {[%clk 0:02:54]}  Rxe2 {[%clk 0:02:50]} 13. Qxe2 {[%clk 0:02:51]}  Bxf4+ {[%clk 0:02:51]} 14. Kb1 {[%clk 0:02:52]}  Be6 {[%clk 0:02:44]} 15. Qxh5 {[%clk 0:02:49]}  b5 {[%clk 0:02:29]} 16. g3 {[%clk 0:02:41]}  Bd6 {[%clk 0:02:24]} 17. f4 {[%clk 0:02:41]}  Qa5 {[%clk 0:02:08]} 18. b3 {[%clk 0:02:37]}  Qxc3 {[%clk 0:02:05]} 19. Qe2 {[%clk 0:02:30]}  Bd5 {[%clk 0:01:52]} 20. Rc1 {[%clk 0:02:28]}  Qxd4 {[%clk 0:01:50]} 21. Rhd1 {[%clk 0:02:28]}  Qb4 {[%clk 0:01:44]} 22. Bxb5 {[%clk 0:02:13]}  a5 {[%clk 0:01:06]} 23. Bc4 {[%clk 0:02:05]}  a4 {[%clk 0:01:06]} 24. Bxd5 {[%clk 0:02:02]}  cxd5 {[%clk 0:01:07]} 25. Qd2 {[%clk 0:01:47]}  axb3 {[%clk 0:01:03]} 26. Qxb4 {[%clk 0:01:43]}  bxa2+ {[%clk 0:01:03]} 27. Kb2 {[%clk 0:01:38]}  Bxb4 {[%clk 0:01:04]} 28. Rxd5 {[%clk 0:01:38]}  Ba3+ {[%clk 0:00:57]} 0-1


[Site "https://www.chess.com"]

[Event "Titled Tuesday Blitz January 31 Early 2023"]
[White "Mione, Dario"]
[Black "Mosquera, Miguel"]
[WhiteFideId "806625"]
[BlackFideId "4401131"]
[WhiteElo "2228"]
[BlackElo "2371"]
[Result "1-0"]
[Round "11"]
[TimeControl "180+2"]
[Date "2023.01.31"]
[WhiteClock "0:01:09"]
[BlackClock "0:00:03"]

1. Nf3 {[%clk 0:03:00]}  d5 {[%clk 0:02:59]} 2. e3 {[%clk 0:03:00]}  Nf6 {[%clk 0:02:58]} 3. b3 {[%clk 0:03:00]}  c5 {[%clk 0:02:56]} 4. Bb2 {[%clk 0:03:00]}  Nc6 {[%clk 0:02:56]} 5. d4 {[%clk 0:03:00]}  e6 {[%clk 0:02:54]} 6. c4 {[%clk 0:02:54]}  Be7 {[%clk 0:02:50]} 7. Nbd2 {[%clk 0:02:54]}  O-O {[%clk 0:02:49]} 8. Rc1 {[%clk 0:02:54]}  Re8 {[%clk 0:02:42]} 9. Bd3 {[%clk 0:02:53]}  Nb4 {[%clk 0:02:37]} 10. Bb1 {[%clk 0:02:53]}  b6 {[%clk 0:02:33]} 11. O-O {[%clk 0:02:51]}  Bb7 {[%clk 0:02:30]} 12. Ne5 {[%clk 0:02:51]}  Rc8 {[%clk 0:02:22]} 13. Ndf3 {[%clk 0:02:51]}  Nd7 {[%clk 0:02:16]} 14. Bxh7+ {[%clk 0:02:32]}  Kxh7 {[%clk 0:02:15]} 15. Nxf7 {[%clk 0:02:33]}  Qc7 {[%clk 0:02:07]} 16. N3g5+ {[%clk 0:02:32]}  Bxg5 {[%clk 0:02:02]} 17. Nxg5+ {[%clk 0:02:33]}  Kg6 {[%clk 0:02:02]} 18. f4 {[%clk 0:02:19]}  Nf6 {[%clk 0:01:39]} 19. a3 {[%clk 0:02:17]}  dxc4 {[%clk 0:01:10]} 20. axb4 {[%clk 0:02:13]}  Qc6 {[%clk 0:01:09]} 21. Rf3 {[%clk 0:02:09]}  cxd4 {[%clk 0:01:02]} 22. Bxd4 {[%clk 0:02:07]}  Qd5 {[%clk 0:00:41]} 23. Rg3 {[%clk 0:02:03]}  Nh5 {[%clk 0:00:31]} 24. e4 {[%clk 0:01:41]}  Qd7 {[%clk 0:00:17]} 25. Nxe6+ {[%clk 0:01:34]}  Nxg3 {[%clk 0:00:17]} 26. Qg4+ {[%clk 0:01:34]}  Kh7 {[%clk 0:00:16]} 27. Ng5+ {[%clk 0:01:33]}  Kg8 {[%clk 0:00:11]} 28. Qxd7 {[%clk 0:01:33]}  Ne2+ {[%clk 0:00:07]} 29. Kf2 {[%clk 0:01:30]}  Nxd4 {[%clk 0:00:05]} 30. Qf7+ {[%clk 0:01:27]}  Kh8 {[%clk 0:00:05]} 31. Qh5+ {[%clk 0:01:28]}  Kg8 {[%clk 0:00:05]} 32. Qh7+ {[%clk 0:01:28]}  Kf8 {[%clk 0:00:06]} 33. Qh8+ {[%clk 0:01:28]}  Ke7 {[%clk 0:00:06]} 34. Qxg7+ {[%clk 0:01:29]}  Kd6 {[%clk 0:00:07]} 35. Qxb7 {[%clk 0:01:23]}  Rc7 {[%clk 0:00:04]} 36. Qd5+ {[%clk 0:01:22]}  Ke7 {[%clk 0:00:04]} 37. Qxd4 {[%clk 0:01:20]}  Rd7 {[%clk 0:00:04]} 38. Qe5+ {[%clk 0:01:16]}  Kd8 {[%clk 0:00:04]} 39. Ne6+ {[%clk 0:01:14]}  Kc8 {[%clk 0:00:04]} 40. Rxc4+ {[%clk 0:01:13]}  Kb7 {[%clk 0:00:04]} 41. Rc7+ {[%clk 0:01:12]}  Ka6 {[%clk 0:00:04]} 42. b5+ {[%clk 0:01:10]}  Ka5 {[%clk 0:00:03]} 43. Rxd7 {[%clk 0:01:09]} 1-0


[Site "https://www.chess.com"]

[Event "Titled Tuesday Blitz January 31 Early 2023"]
[White "Kornyukov, Alexey"]
[Black "Zacurdajev, Dmitry"]
[WhiteFideId "4150457"]
[BlackFideId "4196309"]
[WhiteElo "2452"]
[BlackElo "2273"]
[Result "1-0"]
[Round "11"]
[TimeControl "180+2"]
[Date "2023.01.31"]
[WhiteClock "0:02:11"]
[BlackClock "0:01:30"]

1. e4 {[%clk 0:02:57]}  c6 {[%clk 0:03:00]} 2. Nf3 {[%clk 0:02:55]}  d5 {[%clk 0:03:01]} 3. exd5 {[%clk 0:02:54]}  cxd5 {[%clk 0:03:02]} 4. d4 {[%clk 0:02:55]}  Nc6 {[%clk 0:03:01]} 5. Bb5 {[%clk 0:02:55]}  Nf6 {[%clk 0:02:55]} 6. Nc3 {[%clk 0:02:53]}  Bg4 {[%clk 0:02:53]} 7. O-O {[%clk 0:02:47]}  e6 {[%clk 0:02:53]} 8. h3 {[%clk 0:02:47]}  Bh5 {[%clk 0:02:50]} 9. g4 {[%clk 0:02:46]}  Bg6 {[%clk 0:02:50]} 10. Ne5 {[%clk 0:02:45]}  Rc8 {[%clk 0:02:47]} 11. f4 {[%clk 0:02:44]}  Be4 {[%clk 0:02:15]} 12. g5 {[%clk 0:02:37]}  Nd7 {[%clk 0:02:12]} 13. Nxe4 {[%clk 0:02:36]}  dxe4 {[%clk 0:02:13]} 14. d5 {[%clk 0:02:33]}  Ndxe5 {[%clk 0:02:00]} 15. dxc6 {[%clk 0:02:30]}  Qxd1 {[%clk 0:01:37]} 16. cxb7+ {[%clk 0:02:27]}  Ke7 {[%clk 0:01:31]} 17. bxc8=N+ {[%clk 0:02:11]}  Kd8 {[%clk 0:01:30]} 18. Rxd1+ {[%clk 0:02:11]}  Kxc8 {[%clk 0:01:30]} 19. fxe5 {[%clk 0:02:11]}  Bc5+ {[%clk 0:01:30]} 20. Kg2 {[%clk 0:02:11]} 1-0


[Site "https://www.chess.com"]

[Event "Titled Tuesday Blitz January 31 Early 2023"]
[White "Dwilewicz, Katarzyna"]
[Black "Tuleyeva-Aketayeva, Dana"]
[WhiteFideId "1148486"]
[BlackFideId "13701932"]
[WhiteElo "2115"]
[BlackElo "2130"]
[Result "0-1"]
[Round "11"]
[TimeControl "180+2"]
[Date "2023.01.31"]
[WhiteClock "0:00:04"]
[BlackClock "0:00:05"]

1. e4 {[%clk 0:02:55]}  c5 {[%clk 0:02:53]} 2. Nc3 {[%clk 0:02:55]}  Nc6 {[%clk 0:02:50]} 3. g3 {[%clk 0:02:55]}  g6 {[%clk 0:02:50]} 4. Bg2 {[%clk 0:02:56]}  Bg7 {[%clk 0:02:49]} 5. Nge2 {[%clk 0:02:56]}  Nf6 {[%clk 0:02:24]} 6. d3 {[%clk 0:02:57]}  O-O {[%clk 0:02:24]} 7. f4 {[%clk 0:02:55]}  d6 {[%clk 0:02:23]} 8. O-O {[%clk 0:02:53]}  Rb8 {[%clk 0:02:22]} 9. a4 {[%clk 0:02:52]}  Nd4 {[%clk 0:02:18]} 10. Nxd4 {[%clk 0:02:49]}  cxd4 {[%clk 0:02:18]} 11. Ne2 {[%clk 0:02:49]}  Nd7 {[%clk 0:02:18]} 12. b3 {[%clk 0:02:45]}  a5 {[%clk 0:02:13]} 13. Bb2 {[%clk 0:02:45]}  Qb6 {[%clk 0:02:05]} 14. Qe1 {[%clk 0:02:44]}  Qc5 {[%clk 0:02:04]} 15. Rc1 {[%clk 0:02:35]}  e5 {[%clk 0:02:02]} 16. Qf2 {[%clk 0:02:33]}  b5 {[%clk 0:01:58]} 17. axb5 {[%clk 0:02:33]}  Rxb5 {[%clk 0:01:50]} 18. Ba1 {[%clk 0:02:26]}  Rb8 {[%clk 0:01:22]} 19. h3 {[%clk 0:02:23]}  Ba6 {[%clk 0:01:03]} 20. f5 {[%clk 0:02:22]}  Bh6 {[%clk 0:01:02]} 21. f6 {[%clk 0:02:03]}  Bxc1 {[%clk 0:01:02]} 22. Rxc1 {[%clk 0:02:02]}  Qc8 {[%clk 0:00:41]} 23. g4 {[%clk 0:02:02]}  h6 {[%clk 0:00:39]} 24. Qh4 {[%clk 0:01:54]}  Qd8 {[%clk 0:00:34]} 25. Rf1 {[%clk 0:01:52]}  Re8 {[%clk 0:00:17]} 26. g5 {[%clk 0:01:03]}  hxg5 {[%clk 0:00:17]} 27. Qxg5 {[%clk 0:01:02]}  Re6 {[%clk 0:00:16]} 28. Nxd4 {[%clk 0:00:58]}  Rxf6 {[%clk 0:00:10]} 29. Nf5 {[%clk 0:00:53]}  Rxf5 {[%clk 0:00:09]} 30. Qxd8+ {[%clk 0:00:50]}  Rxd8 {[%clk 0:00:09]} 31. exf5 {[%clk 0:00:51]}  Kg7 {[%clk 0:00:08]} 32. fxg6 {[%clk 0:00:50]}  fxg6 {[%clk 0:00:08]} 33. Bc3 {[%clk 0:00:44]}  Rc8 {[%clk 0:00:08]} 34. Bxa5 {[%clk 0:00:41]}  Rxc2 {[%clk 0:00:08]} 35. Rd1 {[%clk 0:00:23]}  Nc5 {[%clk 0:00:05]} 36. b4 {[%clk 0:00:17]}  Nxd3 {[%clk 0:00:05]} 37. Bf1 {[%clk 0:00:17]}  e4 {[%clk 0:00:03]} 38. Rb1 {[%clk 0:00:13]}  d5 {[%clk 0:00:03]} 39. b5 {[%clk 0:00:13]}  Bc8 {[%clk 0:00:04]} 40. b6 {[%clk 0:00:13]}  Bb7 {[%clk 0:00:04]} 41. Rb3 {[%clk 0:00:10]}  Rc1 {[%clk 0:00:04]} 42. Kg2 {[%clk 0:00:07]}  Nf4+ {[%clk 0:00:04]} 43. Kf2 {[%clk 0:00:06]}  Nd3+ {[%clk 0:00:04]} 44. Bxd3 {[%clk 0:00:06]}  exd3 {[%clk 0:00:04]} 45. Rxd3 {[%clk 0:00:06]}  Rc2+ {[%clk 0:00:05]} 46. Kg3 {[%clk 0:00:06]}  Rc5 {[%clk 0:00:05]} 47. Bc3+ {[%clk 0:00:04]}  Kh7 {[%clk 0:00:05]} 48. Bd4 {[%clk 0:00:04]}  Rb5 {[%clk 0:00:05]} 49. Kg4 {[%clk 0:00:04]}  Bc8+ {[%clk 0:00:05]} 50. Kg5 {[%clk 0:00:03]}  Bf5 {[%clk 0:00:05]} 51. h4 {[%clk 0:00:04]}  Bxd3 {[%clk 0:00:05]} 52. h5 {[%clk 0:00:04]}  gxh5 {[%clk 0:00:05]} 0-1


[Site "https://www.chess.com"]

[Event "Titled Tuesday Blitz January 31 Early 2023"]
[White "Martin, Lewis"]
[Black "Osiecki, Stanislaw"]
[WhiteFideId "410551"]
[BlackFideId "1102990"]
[WhiteElo "2135"]
[BlackElo "2055"]
[Result "1-0"]
[Round "11"]
[TimeControl "180+2"]
[Date "2023.01.31"]
[WhiteClock "0:01:58"]
[BlackClock "0:00:56"]

1. e4 {[%clk 0:03:00]}  e6 {[%clk 0:02:58]} 2. b3 {[%clk 0:02:59]}  d5 {[%clk 0:02:58]} 3. Bb2 {[%clk 0:02:59]}  d4 {[%clk 0:02:58]} 4. Nf3 {[%clk 0:02:57]}  Nc6 {[%clk 0:02:58]} 5. c3 {[%clk 0:02:57]}  e5 {[%clk 0:02:58]} 6. cxd4 {[%clk 0:02:56]}  Nxd4 {[%clk 0:02:59]} 7. Nxe5 {[%clk 0:02:46]}  c5 {[%clk 0:02:59]} 8. Nc3 {[%clk 0:02:43]}  a6 {[%clk 0:02:58]} 9. Bc4 {[%clk 0:02:41]}  Be6 {[%clk 0:02:56]} 10. Bxe6 {[%clk 0:02:40]}  Nxe6 {[%clk 0:02:55]} 11. O-O {[%clk 0:02:38]}  Nf6 {[%clk 0:02:54]} 12. f4 {[%clk 0:02:32]}  Qd4+ {[%clk 0:02:51]} 13. Kh1 {[%clk 0:02:30]}  Nxe4 {[%clk 0:02:42]} 14. Qe2 {[%clk 0:02:29]}  f5 {[%clk 0:02:00]} 15. Rae1 {[%clk 0:02:22]}  Be7 {[%clk 0:01:49]} 16. Nxe4 {[%clk 0:02:16]}  Qxb2 {[%clk 0:01:42]} 17. Nd3 {[%clk 0:02:16]}  Qd4 {[%clk 0:01:36]} 18. Nexc5 {[%clk 0:02:11]}  Bxc5 {[%clk 0:01:15]} 19. Qxe6+ {[%clk 0:02:10]}  Kd8 {[%clk 0:01:15]} 20. Nxc5 {[%clk 0:02:04]}  Qxc5 {[%clk 0:01:14]} 21. Re5 {[%clk 0:02:04]}  Qc6 {[%clk 0:00:57]} 22. Rd5+ {[%clk 0:01:59]}  Kc7 {[%clk 0:00:58]} 23. Qe5+ {[%clk 0:01:59]}  Kc8 {[%clk 0:00:56]} 24. Rc5 {[%clk 0:01:58]} 1-0


[Site "https://www.chess.com"]